{"text_format":"3","workbook":"xlsx","n_sheets":3,"sheets":["Denný plán","Plánovač udalostí","Časové intervaly"],"not_rendered":{"defined_names":21},"read":"whole","date_system":"1900"}

{"sheet":"Denný plán","index":0,"n_rows":76,"n_cols":13,"rows_kept":76,"merged":[[0,1,0,2],[1,1,5,2],[2,12,4,12],[3,7,4,7],[5,12,7,12],[6,1,8,2],[8,12,10,12],[9,7,10,7],[10,1,10,2],[11,12,13,12],[14,12,16,12],[15,7,16,7],[17,12,19,12],[18,1,18,2],[20,12,22,12],[21,7,22,7],[23,12,25,12],[24,1,24,2],[25,1,25,2],[26,7,27,7],[26,12,28,12],[29,12,31,12],[31,7,32,7],[32,12,34,12]]}
[null,"Denný plán"]
[null,{"$f":"IFERROR(DAY(HodnotaDátumu),\"\")","v":24},null,null,"Čas",{"$f":"IFERROR(UPPER(TEXT(DATE(RokZostavy,ČísloMesiaca,DeňZostavy),\"d mmmm yyyy\")),\"\")","v":"24 JÚN 2022"},null,"PREHĽAD TÝŽDŇA",{"$nulls":3},"POZNÁMKY / ZOZNAM ÚLOH"]
[{"$nulls":4},"Čas","Popis",null,{"$f":"IFERROR(TEXT(DATEVALUE(HodnotaDátumu)+1,\"dddd\"),\"\")","v":"sobota"},{"$f":"IFERROR(INDEX(PlánovačUdalostí[],MATCH($H$6&\"|\"&ROW(A1),PlánovačUdalostí[JEDINEČNÁ HODNOTA (VYPOČÍTANÁ)],0),2),\"\")","v":""},{"$f":"IFERROR(INDEX(PlánovačUdalostí[],MATCH($H$6&\"|\"&ROW(A1),PlánovačUdalostí[JEDINEČNÁ HODNOTA (VYPOČÍTANÁ)],0),3),\"\")","v":""},null,null,"Vyzdvihnúť oblečenie z čistiarne"]
[{"$nulls":4},{"$f":"'Časové intervaly'!E3","v":"06:00:00"},{"$f":"IFERROR(INDEX(PlánovačUdalostí[],MATCH(DATEVALUE(HodnotaDátumu)&DennýPlán[[#This Row],[Čas]],HľadaťDátumAČas,0),3),\"\")","v":"Budíček"},null,{"$f":"IFERROR(TEXT(DATEVALUE(HodnotaDátumu)+1,\"d\"),\"\")","v":"25"},{"$f":"IFERROR(INDEX(PlánovačUdalostí[],MATCH($H$6&\"|\"&ROW(A2),PlánovačUdalostí[JEDINEČNÁ HODNOTA (VYPOČÍTANÁ)],0),2),\"\")","v":"06:30:00"},{"$f":"IFERROR(INDEX(PlánovačUdalostí[],MATCH($H$6&\"|\"&ROW(A2),PlánovačUdalostí[JEDINEČNÁ HODNOTA (VYPOČÍTANÁ)],0),3),\"\")","v":"Raňajky"}]
[{"$nulls":4},{"$f":"'Časové intervaly'!E4","v":"06:15:00"},{"$f":"IFERROR(INDEX(PlánovačUdalostí[],MATCH(DATEVALUE(HodnotaDátumu)&DennýPlán[[#This Row],[Čas]],HľadaťDátumAČas,0),3),\"\")","v":""},null,null,{"$f":"IFERROR(INDEX(PlánovačUdalostí[],MATCH($H$6&\"|\"&ROW(A3),PlánovačUdalostí[JEDINEČNÁ HODNOTA (VYPOČÍTANÁ)],0),2),\"\")","v":""},{"$f":"IFERROR(INDEX(PlánovačUdalostí[],MATCH($H$6&\"|\"&ROW(A3),PlánovačUdalostí[JEDINEČNÁ HODNOTA (VYPOČÍTANÁ)],0),3),\"\")","v":""}]
[{"$nulls":4},{"$f":"'Časové intervaly'!E5","v":"06:30:00"},{"$f":"IFERROR(INDEX(PlánovačUdalostí[],MATCH(DATEVALUE(HodnotaDátumu)&DennýPlán[[#This Row],[Čas]],HľadaťDátumAČas,0),3),\"\")","v":"Sprcha"},null,{"$f":"IFERROR(HodnotaDátumu+1,\"\")","v":"2022-06-25"},{"$f":"IFERROR(INDEX(PlánovačUdalostí[],MATCH($H$6&\"|\"&ROW(A4),PlánovačUdalostí[JEDINEČNÁ HODNOTA (VYPOČÍTANÁ)],0),2),\"\")","v":""},{"$f":"IFERROR(INDEX(PlánovačUdalostí[],MATCH($H$6&\"|\"&ROW(A4),PlánovačUdalostí[JEDINEČNÁ HODNOTA (VYPOČÍTANÁ)],0),3),\"\")","v":""},null,null,"Zavolať káblovej spoločnosti"]
[null,{"$f":"IFERROR(TEXT(HodnotaDátumu,\"dddd\"),\"\")","v":"piatok"},null,null,{"$f":"'Časové intervaly'!E6","v":"06:45:00"},{"$f":"IFERROR(INDEX(PlánovačUdalostí[],MATCH(DATEVALUE(HodnotaDátumu)&DennýPlán[[#This Row],[Čas]],HľadaťDátumAČas,0),3),\"\")","v":""},null,null,{"$f":"IFERROR(INDEX(PlánovačUdalostí[],MATCH($H$6&\"|\"&ROW(A5),PlánovačUdalostí[JEDINEČNÁ HODNOTA (VYPOČÍTANÁ)],0),2),\"\")","v":""},{"$f":"IFERROR(INDEX(PlánovačUdalostí[],MATCH($H$6&\"|\"&ROW(A5),PlánovačUdalostí[JEDINEČNÁ HODNOTA (VYPOČÍTANÁ)],0),3),\"\")","v":""}]
[{"$nulls":4},{"$f":"'Časové intervaly'!E7","v":"07:00:00"},{"$f":"IFERROR(INDEX(PlánovačUdalostí[],MATCH(DATEVALUE(HodnotaDátumu)&DennýPlán[[#This Row],[Čas]],HľadaťDátumAČas,0),3),\"\")","v":""},null,null,{"$f":"IFERROR(INDEX(PlánovačUdalostí[],MATCH($H$6&\"|\"&ROW(A6),PlánovačUdalostí[JEDINEČNÁ HODNOTA (VYPOČÍTANÁ)],0),2),\"\")","v":""},{"$f":"IFERROR(INDEX(PlánovačUdalostí[],MATCH($H$6&\"|\"&ROW(A6),PlánovačUdalostí[JEDINEČNÁ HODNOTA (VYPOČÍTANÁ)],0),3),\"\")","v":""}]
[{"$nulls":4},{"$f":"'Časové intervaly'!E8","v":"07:15:00"},{"$f":"IFERROR(INDEX(PlánovačUdalostí[],MATCH(DATEVALUE(HodnotaDátumu)&DennýPlán[[#This Row],[Čas]],HľadaťDátumAČas,0),3),\"\")","v":""},null,{"$f":"IFERROR(TEXT(DATEVALUE(HodnotaDátumu)+2,\"dddd\"),\"\")","v":"nedeľa"},{"$f":"IFERROR(INDEX(PlánovačUdalostí[],MATCH($H$12&\"|\"&ROW(A1),PlánovačUdalostí[JEDINEČNÁ HODNOTA (VYPOČÍTANÁ)],0),2),\"\")","v":""},{"$f":"IFERROR(INDEX(PlánovačUdalostí[],MATCH($H$12&\"|\"&ROW(A1),PlánovačUdalostí[JEDINEČNÁ HODNOTA (VYPOČÍTANÁ)],0),3),\"\")","v":""}]
[{"$nulls":4},{"$f":"'Časové intervaly'!E9","v":"07:30:00"},{"$f":"IFERROR(INDEX(PlánovačUdalostí[],MATCH(DATEVALUE(HodnotaDátumu)&DennýPlán[[#This Row],[Čas]],HľadaťDátumAČas,0),3),\"\")","v":"Odchod do práce"},null,{"$f":"IFERROR(TEXT(DATEVALUE(HodnotaDátumu)+2,\"d\"),\"\")","v":"26"},{"$f":"IFERROR(INDEX(PlánovačUdalostí[],MATCH($H$12&\"|\"&ROW(A2),PlánovačUdalostí[JEDINEČNÁ HODNOTA (VYPOČÍTANÁ)],0),2),\"\")","v":""},{"$f":"IFERROR(INDEX(PlánovačUdalostí[],MATCH($H$12&\"|\"&ROW(A2),PlánovačUdalostí[JEDINEČNÁ HODNOTA (VYPOČÍTANÁ)],0),3),\"\")","v":""}]
[null,"ZOBRAZENIE PLÁNU",null,null,{"$f":"'Časové intervaly'!E10","v":"07:45:00"},{"$f":"IFERROR(INDEX(PlánovačUdalostí[],MATCH(DATEVALUE(HodnotaDátumu)&DennýPlán[[#This Row],[Čas]],HľadaťDátumAČas,0),3),\"\")","v":""},null,null,{"$f":"IFERROR(INDEX(PlánovačUdalostí[],MATCH($H$12&\"|\"&ROW(A3),PlánovačUdalostí[JEDINEČNÁ HODNOTA (VYPOČÍTANÁ)],0),2),\"\")","v":""},{"$f":"IFERROR(INDEX(PlánovačUdalostí[],MATCH($H$12&\"|\"&ROW(A3),PlánovačUdalostí[JEDINEČNÁ HODNOTA (VYPOČÍTANÁ)],0),3),\"\")","v":""}]
[{"$nulls":4},{"$f":"'Časové intervaly'!E11","v":"08:00:00"},{"$f":"IFERROR(INDEX(PlánovačUdalostí[],MATCH(DATEVALUE(HodnotaDátumu)&DennýPlán[[#This Row],[Čas]],HľadaťDátumAČas,0),3),\"\")","v":"Začiatok zmeny"},null,{"$f":"IFERROR(HodnotaDátumu+2,\"\")","v":"2022-06-26"},{"$f":"IFERROR(INDEX(PlánovačUdalostí[],MATCH($H$12&\"|\"&ROW(A4),PlánovačUdalostí[JEDINEČNÁ HODNOTA (VYPOČÍTANÁ)],0),2),\"\")","v":""},{"$f":"IFERROR(INDEX(PlánovačUdalostí[],MATCH($H$12&\"|\"&ROW(A4),PlánovačUdalostí[JEDINEČNÁ HODNOTA (VYPOČÍTANÁ)],0),3),\"\")","v":""}]
[null,"Rok",null,null,{"$f":"'Časové intervaly'!E12","v":"08:15:00"},{"$f":"IFERROR(INDEX(PlánovačUdalostí[],MATCH(DATEVALUE(HodnotaDátumu)&DennýPlán[[#This Row],[Čas]],HľadaťDátumAČas,0),3),\"\")","v":""},null,null,{"$f":"IFERROR(INDEX(PlánovačUdalostí[],MATCH($H$12&\"|\"&ROW(A5),PlánovačUdalostí[JEDINEČNÁ HODNOTA (VYPOČÍTANÁ)],0),2),\"\")","v":""},{"$f":"IFERROR(INDEX(PlánovačUdalostí[],MATCH($H$12&\"|\"&ROW(A5),PlánovačUdalostí[JEDINEČNÁ HODNOTA (VYPOČÍTANÁ)],0),3),\"\")","v":""}]
[{"$nulls":4},{"$f":"'Časové intervaly'!E13","v":"08:30:00"},{"$f":"IFERROR(INDEX(PlánovačUdalostí[],MATCH(DATEVALUE(HodnotaDátumu)&DennýPlán[[#This Row],[Čas]],HľadaťDátumAČas,0),3),\"\")","v":""},null,null,{"$f":"IFERROR(INDEX(PlánovačUdalostí[],MATCH($H$12&\"|\"&ROW(A6),PlánovačUdalostí[JEDINEČNÁ HODNOTA (VYPOČÍTANÁ)],0),2),\"\")","v":""},{"$f":"IFERROR(INDEX(PlánovačUdalostí[],MATCH($H$12&\"|\"&ROW(A6),PlánovačUdalostí[JEDINEČNÁ HODNOTA (VYPOČÍTANÁ)],0),3),\"\")","v":""}]
[null,"Mesiac",null,null,{"$f":"'Časové intervaly'!E14","v":"08:45:00"},{"$f":"IFERROR(INDEX(PlánovačUdalostí[],MATCH(DATEVALUE(HodnotaDátumu)&DennýPlán[[#This Row],[Čas]],HľadaťDátumAČas,0),3),\"\")","v":""},null,{"$f":"IFERROR(TEXT(DATEVALUE(HodnotaDátumu)+3,\"dddd\"),\"\")","v":"pondelok"},{"$f":"IFERROR(INDEX(PlánovačUdalostí[],MATCH($H$18&\"|\"&ROW(A1),PlánovačUdalostí[JEDINEČNÁ HODNOTA (VYPOČÍTANÁ)],0),2),\"\")","v":""},{"$f":"IFERROR(INDEX(PlánovačUdalostí[],MATCH($H$18&\"|\"&ROW(A1),PlánovačUdalostí[JEDINEČNÁ HODNOTA (VYPOČÍTANÁ)],0),3),\"\")","v":""}]
[{"$nulls":4},{"$f":"'Časové intervaly'!E15","v":"09:00:00"},{"$f":"IFERROR(INDEX(PlánovačUdalostí[],MATCH(DATEVALUE(HodnotaDátumu)&DennýPlán[[#This Row],[Čas]],HľadaťDátumAČas,0),3),\"\")","v":""},null,{"$f":"IFERROR(TEXT(DATEVALUE(HodnotaDátumu)+3,\"d\"),\"\")","v":"27"},{"$f":"IFERROR(INDEX(PlánovačUdalostí[],MATCH($H$18&\"|\"&ROW(A2),PlánovačUdalostí[JEDINEČNÁ HODNOTA (VYPOČÍTANÁ)],0),2),\"\")","v":""},{"$f":"IFERROR(INDEX(PlánovačUdalostí[],MATCH($H$18&\"|\"&ROW(A2),PlánovačUdalostí[JEDINEČNÁ HODNOTA (VYPOČÍTANÁ)],0),3),\"\")","v":""}]
[null,"Deň",null,null,{"$f":"'Časové intervaly'!E16","v":"09:15:00"},{"$f":"IFERROR(INDEX(PlánovačUdalostí[],MATCH(DATEVALUE(HodnotaDátumu)&DennýPlán[[#This Row],[Čas]],HľadaťDátumAČas,0),3),\"\")","v":""},null,null,{"$f":"IFERROR(INDEX(PlánovačUdalostí[],MATCH($H$18&\"|\"&ROW(A3),PlánovačUdalostí[JEDINEČNÁ HODNOTA (VYPOČÍTANÁ)],0),2),\"\")","v":""},{"$f":"IFERROR(INDEX(PlánovačUdalostí[],MATCH($H$18&\"|\"&ROW(A3),PlánovačUdalostí[JEDINEČNÁ HODNOTA (VYPOČÍTANÁ)],0),3),\"\")","v":""}]
[{"$nulls":4},{"$f":"'Časové intervaly'!E17","v":"09:30:00"},{"$f":"IFERROR(INDEX(PlánovačUdalostí[],MATCH(DATEVALUE(HodnotaDátumu)&DennýPlán[[#This Row],[Čas]],HľadaťDátumAČas,0),3),\"\")","v":""},null,{"$f":"IFERROR(HodnotaDátumu+3,\"\")","v":"2022-06-27"},{"$f":"IFERROR(INDEX(PlánovačUdalostí[],MATCH($H$18&\"|\"&ROW(A4),PlánovačUdalostí[JEDINEČNÁ HODNOTA (VYPOČÍTANÁ)],0),2),\"\")","v":""},{"$f":"IFERROR(INDEX(PlánovačUdalostí[],MATCH($H$18&\"|\"&ROW(A4),PlánovačUdalostí[JEDINEČNÁ HODNOTA (VYPOČÍTANÁ)],0),3),\"\")","v":""}]
[null,"ÚPRAVA PLÁNU",null,null,{"$f":"'Časové intervaly'!E18","v":"09:45:00"},{"$f":"IFERROR(INDEX(PlánovačUdalostí[],MATCH(DATEVALUE(HodnotaDátumu)&DennýPlán[[#This Row],[Čas]],HľadaťDátumAČas,0),3),\"\")","v":""},null,null,{"$f":"IFERROR(INDEX(PlánovačUdalostí[],MATCH($H$18&\"|\"&ROW(A5),PlánovačUdalostí[JEDINEČNÁ HODNOTA (VYPOČÍTANÁ)],0),2),\"\")","v":""},{"$f":"IFERROR(INDEX(PlánovačUdalostí[],MATCH($H$18&\"|\"&ROW(A5),PlánovačUdalostí[JEDINEČNÁ HODNOTA (VYPOČÍTANÁ)],0),3),\"\")","v":""}]
[{"$nulls":4},{"$f":"'Časové intervaly'!E19","v":"10:00:00"},{"$f":"IFERROR(INDEX(PlánovačUdalostí[],MATCH(DATEVALUE(HodnotaDátumu)&DennýPlán[[#This Row],[Čas]],HľadaťDátumAČas,0),3),\"\")","v":"Prestávka"},null,null,{"$f":"IFERROR(INDEX(PlánovačUdalostí[],MATCH($H$18&\"|\"&ROW(A6),PlánovačUdalostí[JEDINEČNÁ HODNOTA (VYPOČÍTANÁ)],0),2),\"\")","v":""},{"$f":"IFERROR(INDEX(PlánovačUdalostí[],MATCH($H$18&\"|\"&ROW(A6),PlánovačUdalostí[JEDINEČNÁ HODNOTA (VYPOČÍTANÁ)],0),3),\"\")","v":""}]
[null,"Výberom upravíte časové intervaly",null,null,{"$f":"'Časové intervaly'!E20","v":"10:15:00"},{"$f":"IFERROR(INDEX(PlánovačUdalostí[],MATCH(DATEVALUE(HodnotaDátumu)&DennýPlán[[#This Row],[Čas]],HľadaťDátumAČas,0),3),\"\")","v":""},null,{"$f":"IFERROR(TEXT(DATEVALUE(HodnotaDátumu)+4,\"dddd\"),\"\")","v":"utorok"},{"$f":"IFERROR(INDEX(PlánovačUdalostí[],MATCH($H$24&\"|\"&ROW(A1),PlánovačUdalostí[JEDINEČNÁ HODNOTA (VYPOČÍTANÁ)],0),2),\"\")","v":""},{"$f":"IFERROR(INDEX(PlánovačUdalostí[],MATCH($H$24&\"|\"&ROW(A1),PlánovačUdalostí[JEDINEČNÁ HODNOTA (VYPOČÍTANÁ)],0),3),\"\")","v":""}]
[{"$nulls":4},{"$f":"'Časové intervaly'!E21","v":"10:30:00"},{"$f":"IFERROR(INDEX(PlánovačUdalostí[],MATCH(DATEVALUE(HodnotaDátumu)&DennýPlán[[#This Row],[Čas]],HľadaťDátumAČas,0),3),\"\")","v":""},null,{"$f":"IFERROR(TEXT(DATEVALUE(HodnotaDátumu)+4,\"d\"),\"\")","v":"28"},{"$f":"IFERROR(INDEX(PlánovačUdalostí[],MATCH($H$24&\"|\"&ROW(A2),PlánovačUdalostí[JEDINEČNÁ HODNOTA (VYPOČÍTANÁ)],0),2),\"\")","v":""},{"$f":"IFERROR(INDEX(PlánovačUdalostí[],MATCH($H$24&\"|\"&ROW(A2),PlánovačUdalostí[JEDINEČNÁ HODNOTA (VYPOČÍTANÁ)],0),3),\"\")","v":""}]
[null,"Výberom pridáte novú udalosť",null,null,{"$f":"'Časové intervaly'!E22","v":"10:45:00"},{"$f":"IFERROR(INDEX(PlánovačUdalostí[],MATCH(DATEVALUE(HodnotaDátumu)&DennýPlán[[#This Row],[Čas]],HľadaťDátumAČas,0),3),\"\")","v":""},null,null,{"$f":"IFERROR(INDEX(PlánovačUdalostí[],MATCH($H$24&\"|\"&ROW(A3),PlánovačUdalostí[JEDINEČNÁ HODNOTA (VYPOČÍTANÁ)],0),2),\"\")","v":""},{"$f":"IFERROR(INDEX(PlánovačUdalostí[],MATCH($H$24&\"|\"&ROW(A3),PlánovačUdalostí[JEDINEČNÁ HODNOTA (VYPOČÍTANÁ)],0),3),\"\")","v":""}]
[{"$nulls":4},{"$f":"'Časové intervaly'!E23","v":"11:00:00"},{"$f":"IFERROR(INDEX(PlánovačUdalostí[],MATCH(DATEVALUE(HodnotaDátumu)&DennýPlán[[#This Row],[Čas]],HľadaťDátumAČas,0),3),\"\")","v":""},null,{"$f":"IFERROR(HodnotaDátumu+4,\"\")","v":"2022-06-28"},{"$f":"IFERROR(INDEX(PlánovačUdalostí[],MATCH($H$24&\"|\"&ROW(A4),PlánovačUdalostí[JEDINEČNÁ HODNOTA (VYPOČÍTANÁ)],0),2),\"\")","v":""},{"$f":"IFERROR(INDEX(PlánovačUdalostí[],MATCH($H$24&\"|\"&ROW(A4),PlánovačUdalostí[JEDINEČNÁ HODNOTA (VYPOČÍTANÁ)],0),3),\"\")","v":""}]
[null,"ZVÝRAZNENIE V PLÁNE:",null,null,{"$f":"'Časové intervaly'!E24","v":"11:15:00"},{"$f":"IFERROR(INDEX(PlánovačUdalostí[],MATCH(DATEVALUE(HodnotaDátumu)&DennýPlán[[#This Row],[Čas]],HľadaťDátumAČas,0),3),\"\")","v":""},null,null,{"$f":"IFERROR(INDEX(PlánovačUdalostí[],MATCH($H$24&\"|\"&ROW(A5),PlánovačUdalostí[JEDINEČNÁ HODNOTA (VYPOČÍTANÁ)],0),2),\"\")","v":""},{"$f":"IFERROR(INDEX(PlánovačUdalostí[],MATCH($H$24&\"|\"&ROW(A5),PlánovačUdalostí[JEDINEČNÁ HODNOTA (VYPOČÍTANÁ)],0),3),\"\")","v":""}]
[null,"Prestávka",null,null,{"$f":"'Časové intervaly'!E25","v":"11:30:00"},{"$f":"IFERROR(INDEX(PlánovačUdalostí[],MATCH(DATEVALUE(HodnotaDátumu)&DennýPlán[[#This Row],[Čas]],HľadaťDátumAČas,0),3),\"\")","v":""},null,{"$f":"IFERROR(TEXT(DATEVALUE(HodnotaDátumu)+5,\"dddd\"),\"\")","v":"streda"},{"$f":"IFERROR(INDEX(PlánovačUdalostí[],MATCH($H$29&\"|\"&ROW(A1),PlánovačUdalostí[JEDINEČNÁ HODNOTA (VYPOČÍTANÁ)],0),2),\"\")","v":""},{"$f":"IFERROR(INDEX(PlánovačUdalostí[],MATCH($H$29&\"|\"&ROW(A1),PlánovačUdalostí[JEDINEČNÁ HODNOTA (VYPOČÍTANÁ)],0),3),\"\")","v":""}]
[{"$nulls":4},{"$f":"'Časové intervaly'!E26","v":"11:45:00"},{"$f":"IFERROR(INDEX(PlánovačUdalostí[],MATCH(DATEVALUE(HodnotaDátumu)&DennýPlán[[#This Row],[Čas]],HľadaťDátumAČas,0),3),\"\")","v":""},null,{"$f":"IFERROR(TEXT(DATEVALUE(HodnotaDátumu)+5,\"d\"),\"\")","v":"29"},{"$f":"IFERROR(INDEX(PlánovačUdalostí[],MATCH($H$29&\"|\"&ROW(A2),PlánovačUdalostí[JEDINEČNÁ HODNOTA (VYPOČÍTANÁ)],0),2),\"\")","v":""},{"$f":"IFERROR(INDEX(PlánovačUdalostí[],MATCH($H$29&\"|\"&ROW(A2),PlánovačUdalostí[JEDINEČNÁ HODNOTA (VYPOČÍTANÁ)],0),3),\"\")","v":""}]
[{"$nulls":4},{"$f":"'Časové intervaly'!E27","v":"12:00:00"},{"$f":"IFERROR(INDEX(PlánovačUdalostí[],MATCH(DATEVALUE(HodnotaDátumu)&DennýPlán[[#This Row],[Čas]],HľadaťDátumAČas,0),3),\"\")","v":"Obed"},null,null,{"$f":"IFERROR(INDEX(PlánovačUdalostí[],MATCH($H$29&\"|\"&ROW(A3),PlánovačUdalostí[JEDINEČNÁ HODNOTA (VYPOČÍTANÁ)],0),2),\"\")","v":""},{"$f":"IFERROR(INDEX(PlánovačUdalostí[],MATCH($H$29&\"|\"&ROW(A3),PlánovačUdalostí[JEDINEČNÁ HODNOTA (VYPOČÍTANÁ)],0),3),\"\")","v":""}]
[{"$nulls":4},{"$f":"'Časové intervaly'!E28","v":"12:15:00"},{"$f":"IFERROR(INDEX(PlánovačUdalostí[],MATCH(DATEVALUE(HodnotaDátumu)&DennýPlán[[#This Row],[Čas]],HľadaťDátumAČas,0),3),\"\")","v":""},null,{"$f":"IFERROR(HodnotaDátumu+5,\"\")","v":"2022-06-29"},{"$f":"IFERROR(INDEX(PlánovačUdalostí[],MATCH($H$29&\"|\"&ROW(A4),PlánovačUdalostí[JEDINEČNÁ HODNOTA (VYPOČÍTANÁ)],0),2),\"\")","v":""},{"$f":"IFERROR(INDEX(PlánovačUdalostí[],MATCH($H$29&\"|\"&ROW(A4),PlánovačUdalostí[JEDINEČNÁ HODNOTA (VYPOČÍTANÁ)],0),3),\"\")","v":""}]
[{"$nulls":4},{"$f":"'Časové intervaly'!E29","v":"12:30:00"},{"$f":"IFERROR(INDEX(PlánovačUdalostí[],MATCH(DATEVALUE(HodnotaDátumu)&DennýPlán[[#This Row],[Čas]],HľadaťDátumAČas,0),3),\"\")","v":""},null,null,{"$f":"IFERROR(INDEX(PlánovačUdalostí[],MATCH($H$29&\"|\"&ROW(A5),PlánovačUdalostí[JEDINEČNÁ HODNOTA (VYPOČÍTANÁ)],0),2),\"\")","v":""},{"$f":"IFERROR(INDEX(PlánovačUdalostí[],MATCH($H$29&\"|\"&ROW(A5),PlánovačUdalostí[JEDINEČNÁ HODNOTA (VYPOČÍTANÁ)],0),3),\"\")","v":""}]
[{"$nulls":4},{"$f":"'Časové intervaly'!E30","v":"12:45:00"},{"$f":"IFERROR(INDEX(PlánovačUdalostí[],MATCH(DATEVALUE(HodnotaDátumu)&DennýPlán[[#This Row],[Čas]],HľadaťDátumAČas,0),3),\"\")","v":""},null,{"$f":"IFERROR(TEXT(DATEVALUE(HodnotaDátumu)+6,\"dddd\"),\"\")","v":"štvrtok"},{"$f":"IFERROR(INDEX(PlánovačUdalostí[],MATCH($H$34&\"|\"&ROW(A1),PlánovačUdalostí[JEDINEČNÁ HODNOTA (VYPOČÍTANÁ)],0),2),\"\")","v":""},{"$f":"IFERROR(INDEX(PlánovačUdalostí[],MATCH($H$34&\"|\"&ROW(A1),PlánovačUdalostí[JEDINEČNÁ HODNOTA (VYPOČÍTANÁ)],0),3),\"\")","v":""}]
[{"$nulls":4},{"$f":"'Časové intervaly'!E31","v":"13:00:00"},{"$f":"IFERROR(INDEX(PlánovačUdalostí[],MATCH(DATEVALUE(HodnotaDátumu)&DennýPlán[[#This Row],[Čas]],HľadaťDátumAČas,0),3),\"\")","v":""},null,{"$f":"IFERROR(TEXT(DATEVALUE(HodnotaDátumu)+6,\"d\"),\"\")","v":"30"},{"$f":"IFERROR(INDEX(PlánovačUdalostí[],MATCH($H$34&\"|\"&ROW(A2),PlánovačUdalostí[JEDINEČNÁ HODNOTA (VYPOČÍTANÁ)],0),2),\"\")","v":""},{"$f":"IFERROR(INDEX(PlánovačUdalostí[],MATCH($H$34&\"|\"&ROW(A2),PlánovačUdalostí[JEDINEČNÁ HODNOTA (VYPOČÍTANÁ)],0),3),\"\")","v":""}]
[{"$nulls":4},{"$f":"'Časové intervaly'!E32","v":"13:15:00"},{"$f":"IFERROR(INDEX(PlánovačUdalostí[],MATCH(DATEVALUE(HodnotaDátumu)&DennýPlán[[#This Row],[Čas]],HľadaťDátumAČas,0),3),\"\")","v":""},null,null,{"$f":"IFERROR(INDEX(PlánovačUdalostí[],MATCH($H$34&\"|\"&ROW(A3),PlánovačUdalostí[JEDINEČNÁ HODNOTA (VYPOČÍTANÁ)],0),2),\"\")","v":""},{"$f":"IFERROR(INDEX(PlánovačUdalostí[],MATCH($H$34&\"|\"&ROW(A3),PlánovačUdalostí[JEDINEČNÁ HODNOTA (VYPOČÍTANÁ)],0),3),\"\")","v":""}]
[{"$nulls":4},{"$f":"'Časové intervaly'!E33","v":"13:30:00"},{"$f":"IFERROR(INDEX(PlánovačUdalostí[],MATCH(DATEVALUE(HodnotaDátumu)&DennýPlán[[#This Row],[Čas]],HľadaťDátumAČas,0),3),\"\")","v":"Pracovný telefonát"},null,{"$f":"IFERROR(HodnotaDátumu+6,\"\")","v":"2022-06-30"},{"$f":"IFERROR(INDEX(PlánovačUdalostí[],MATCH($H$34&\"|\"&ROW(A4),PlánovačUdalostí[JEDINEČNÁ HODNOTA (VYPOČÍTANÁ)],0),2),\"\")","v":""},{"$f":"IFERROR(INDEX(PlánovačUdalostí[],MATCH($H$34&\"|\"&ROW(A4),PlánovačUdalostí[JEDINEČNÁ HODNOTA (VYPOČÍTANÁ)],0),3),\"\")","v":""}]
[{"$nulls":4},{"$f":"'Časové intervaly'!E34","v":"13:45:00"},{"$f":"IFERROR(INDEX(PlánovačUdalostí[],MATCH(DATEVALUE(HodnotaDátumu)&DennýPlán[[#This Row],[Čas]],HľadaťDátumAČas,0),3),\"\")","v":""},null,null,{"$f":"IFERROR(INDEX(PlánovačUdalostí[],MATCH($H$34&\"|\"&ROW(A5),PlánovačUdalostí[JEDINEČNÁ HODNOTA (VYPOČÍTANÁ)],0),2),\"\")","v":""},{"$f":"IFERROR(INDEX(PlánovačUdalostí[],MATCH($H$34&\"|\"&ROW(A5),PlánovačUdalostí[JEDINEČNÁ HODNOTA (VYPOČÍTANÁ)],0),3),\"\")","v":""}]
[{"$nulls":4},{"$f":"'Časové intervaly'!E35","v":"14:00:00"},{"$f":"IFERROR(INDEX(PlánovačUdalostí[],MATCH(DATEVALUE(HodnotaDátumu)&DennýPlán[[#This Row],[Čas]],HľadaťDátumAČas,0),3),\"\")","v":""}]
[{"$nulls":4},{"$f":"'Časové intervaly'!E36","v":"14:15:00"},{"$f":"IFERROR(INDEX(PlánovačUdalostí[],MATCH(DATEVALUE(HodnotaDátumu)&DennýPlán[[#This Row],[Čas]],HľadaťDátumAČas,0),3),\"\")","v":""}]
[{"$nulls":4},{"$f":"'Časové intervaly'!E37","v":"14:30:00"},{"$f":"IFERROR(INDEX(PlánovačUdalostí[],MATCH(DATEVALUE(HodnotaDátumu)&DennýPlán[[#This Row],[Čas]],HľadaťDátumAČas,0),3),\"\")","v":""}]
[{"$nulls":4},{"$f":"'Časové intervaly'!E38","v":"14:45:00"},{"$f":"IFERROR(INDEX(PlánovačUdalostí[],MATCH(DATEVALUE(HodnotaDátumu)&DennýPlán[[#This Row],[Čas]],HľadaťDátumAČas,0),3),\"\")","v":""}]
[{"$nulls":4},{"$f":"'Časové intervaly'!E39","v":"15:00:00"},{"$f":"IFERROR(INDEX(PlánovačUdalostí[],MATCH(DATEVALUE(HodnotaDátumu)&DennýPlán[[#This Row],[Čas]],HľadaťDátumAČas,0),3),\"\")","v":"Prestávka"}]
[{"$nulls":4},{"$f":"'Časové intervaly'!E40","v":"15:15:00"},{"$f":"IFERROR(INDEX(PlánovačUdalostí[],MATCH(DATEVALUE(HodnotaDátumu)&DennýPlán[[#This Row],[Čas]],HľadaťDátumAČas,0),3),\"\")","v":""}]
[{"$nulls":4},{"$f":"'Časové intervaly'!E41","v":"15:30:00"},{"$f":"IFERROR(INDEX(PlánovačUdalostí[],MATCH(DATEVALUE(HodnotaDátumu)&DennýPlán[[#This Row],[Čas]],HľadaťDátumAČas,0),3),\"\")","v":""}]
[{"$nulls":4},{"$f":"'Časové intervaly'!E42","v":"15:45:00"},{"$f":"IFERROR(INDEX(PlánovačUdalostí[],MATCH(DATEVALUE(HodnotaDátumu)&DennýPlán[[#This Row],[Čas]],HľadaťDátumAČas,0),3),\"\")","v":""}]
[{"$nulls":4},{"$f":"'Časové intervaly'!E43","v":"16:00:00"},{"$f":"IFERROR(INDEX(PlánovačUdalostí[],MATCH(DATEVALUE(HodnotaDátumu)&DennýPlán[[#This Row],[Čas]],HľadaťDátumAČas,0),3),\"\")","v":""}]
[{"$nulls":4},{"$f":"'Časové intervaly'!E44","v":"16:15:00"},{"$f":"IFERROR(INDEX(PlánovačUdalostí[],MATCH(DATEVALUE(HodnotaDátumu)&DennýPlán[[#This Row],[Čas]],HľadaťDátumAČas,0),3),\"\")","v":""}]
[{"$nulls":4},{"$f":"'Časové intervaly'!E45","v":"16:30:00"},{"$f":"IFERROR(INDEX(PlánovačUdalostí[],MATCH(DATEVALUE(HodnotaDátumu)&DennýPlán[[#This Row],[Čas]],HľadaťDátumAČas,0),3),\"\")","v":""}]
[{"$nulls":4},{"$f":"'Časové intervaly'!E46","v":"16:45:00"},{"$f":"IFERROR(INDEX(PlánovačUdalostí[],MATCH(DATEVALUE(HodnotaDátumu)&DennýPlán[[#This Row],[Čas]],HľadaťDátumAČas,0),3),\"\")","v":""}]
[{"$nulls":4},{"$f":"'Časové intervaly'!E47","v":"17:00:00"},{"$f":"IFERROR(INDEX(PlánovačUdalostí[],MATCH(DATEVALUE(HodnotaDátumu)&DennýPlán[[#This Row],[Čas]],HľadaťDátumAČas,0),3),\"\")","v":"Domov"}]
[{"$nulls":4},{"$f":"'Časové intervaly'!E48","v":"17:15:00"},{"$f":"IFERROR(INDEX(PlánovačUdalostí[],MATCH(DATEVALUE(HodnotaDátumu)&DennýPlán[[#This Row],[Čas]],HľadaťDátumAČas,0),3),\"\")","v":""}]
[{"$nulls":4},{"$f":"'Časové intervaly'!E49","v":"17:30:00"},{"$f":"IFERROR(INDEX(PlánovačUdalostí[],MATCH(DATEVALUE(HodnotaDátumu)&DennýPlán[[#This Row],[Čas]],HľadaťDátumAČas,0),3),\"\")","v":""}]
[{"$nulls":4},{"$f":"'Časové intervaly'!E50","v":"17:45:00"},{"$f":"IFERROR(INDEX(PlánovačUdalostí[],MATCH(DATEVALUE(HodnotaDátumu)&DennýPlán[[#This Row],[Čas]],HľadaťDátumAČas,0),3),\"\")","v":""}]
[{"$nulls":4},{"$f":"'Časové intervaly'!E51","v":"18:00:00"},{"$f":"IFERROR(INDEX(PlánovačUdalostí[],MATCH(DATEVALUE(HodnotaDátumu)&DennýPlán[[#This Row],[Čas]],HľadaťDátumAČas,0),3),\"\")","v":"Futbalový tréning"}]
[{"$nulls":4},{"$f":"'Časové intervaly'!E52","v":"18:15:00"},{"$f":"IFERROR(INDEX(PlánovačUdalostí[],MATCH(DATEVALUE(HodnotaDátumu)&DennýPlán[[#This Row],[Čas]],HľadaťDátumAČas,0),3),\"\")","v":""}]
[{"$nulls":4},{"$f":"'Časové intervaly'!E53","v":"18:30:00"},{"$f":"IFERROR(INDEX(PlánovačUdalostí[],MATCH(DATEVALUE(HodnotaDátumu)&DennýPlán[[#This Row],[Čas]],HľadaťDátumAČas,0),3),\"\")","v":""}]
[{"$nulls":4},{"$f":"'Časové intervaly'!E54","v":"18:45:00"},{"$f":"IFERROR(INDEX(PlánovačUdalostí[],MATCH(DATEVALUE(HodnotaDátumu)&DennýPlán[[#This Row],[Čas]],HľadaťDátumAČas,0),3),\"\")","v":""}]
[{"$nulls":4},{"$f":"'Časové intervaly'!E55","v":"19:00:00"},{"$f":"IFERROR(INDEX(PlánovačUdalostí[],MATCH(DATEVALUE(HodnotaDátumu)&DennýPlán[[#This Row],[Čas]],HľadaťDátumAČas,0),3),\"\")","v":""}]
[{"$nulls":4},{"$f":"'Časové intervaly'!E56","v":"19:15:00"},{"$f":"IFERROR(INDEX(PlánovačUdalostí[],MATCH(DATEVALUE(HodnotaDátumu)&DennýPlán[[#This Row],[Čas]],HľadaťDátumAČas,0),3),\"\")","v":""}]
[{"$nulls":4},{"$f":"'Časové intervaly'!E57","v":"19:30:00"},{"$f":"IFERROR(INDEX(PlánovačUdalostí[],MATCH(DATEVALUE(HodnotaDátumu)&DennýPlán[[#This Row],[Čas]],HľadaťDátumAČas,0),3),\"\")","v":""}]
[{"$nulls":4},{"$f":"'Časové intervaly'!E58","v":"19:45:00"},{"$f":"IFERROR(INDEX(PlánovačUdalostí[],MATCH(DATEVALUE(HodnotaDátumu)&DennýPlán[[#This Row],[Čas]],HľadaťDátumAČas,0),3),\"\")","v":""}]
[{"$nulls":4},{"$f":"'Časové intervaly'!E59","v":"20:00:00"},{"$f":"IFERROR(INDEX(PlánovačUdalostí[],MATCH(DATEVALUE(HodnotaDátumu)&DennýPlán[[#This Row],[Čas]],HľadaťDátumAČas,0),3),\"\")","v":""}]
[{"$nulls":4},{"$f":"'Časové intervaly'!E60","v":"20:15:00"},{"$f":"IFERROR(INDEX(PlánovačUdalostí[],MATCH(DATEVALUE(HodnotaDátumu)&DennýPlán[[#This Row],[Čas]],HľadaťDátumAČas,0),3),\"\")","v":""}]
[{"$nulls":4},{"$f":"'Časové intervaly'!E61","v":"20:30:00"},{"$f":"IFERROR(INDEX(PlánovačUdalostí[],MATCH(DATEVALUE(HodnotaDátumu)&DennýPlán[[#This Row],[Čas]],HľadaťDátumAČas,0),3),\"\")","v":""}]
[{"$nulls":4},{"$f":"'Časové intervaly'!E62","v":"20:45:00"},{"$f":"IFERROR(INDEX(PlánovačUdalostí[],MATCH(DATEVALUE(HodnotaDátumu)&DennýPlán[[#This Row],[Čas]],HľadaťDátumAČas,0),3),\"\")","v":""}]
[{"$nulls":4},{"$f":"'Časové intervaly'!E63","v":"21:00:00"},{"$f":"IFERROR(INDEX(PlánovačUdalostí[],MATCH(DATEVALUE(HodnotaDátumu)&DennýPlán[[#This Row],[Čas]],HľadaťDátumAČas,0),3),\"\")","v":""}]
[{"$nulls":4},{"$f":"'Časové intervaly'!E64","v":""},{"$f":"IFERROR(INDEX(PlánovačUdalostí[],MATCH(DATEVALUE(HodnotaDátumu)&DennýPlán[[#This Row],[Čas]],HľadaťDátumAČas,0),3),\"\")","v":""}]
[{"$nulls":4},{"$f":"'Časové intervaly'!E65","v":""},{"$f":"IFERROR(INDEX(PlánovačUdalostí[],MATCH(DATEVALUE(HodnotaDátumu)&DennýPlán[[#This Row],[Čas]],HľadaťDátumAČas,0),3),\"\")","v":""}]
[{"$nulls":4},{"$f":"'Časové intervaly'!E66","v":""},{"$f":"IFERROR(INDEX(PlánovačUdalostí[],MATCH(DATEVALUE(HodnotaDátumu)&DennýPlán[[#This Row],[Čas]],HľadaťDátumAČas,0),3),\"\")","v":""}]
[{"$nulls":4},{"$f":"'Časové intervaly'!E67","v":""},{"$f":"IFERROR(INDEX(PlánovačUdalostí[],MATCH(DATEVALUE(HodnotaDátumu)&DennýPlán[[#This Row],[Čas]],HľadaťDátumAČas,0),3),\"\")","v":""}]
[{"$nulls":4},{"$f":"'Časové intervaly'!E68","v":""},{"$f":"IFERROR(INDEX(PlánovačUdalostí[],MATCH(DATEVALUE(HodnotaDátumu)&DennýPlán[[#This Row],[Čas]],HľadaťDátumAČas,0),3),\"\")","v":""}]
[{"$nulls":4},{"$f":"'Časové intervaly'!E69","v":""},{"$f":"IFERROR(INDEX(PlánovačUdalostí[],MATCH(DATEVALUE(HodnotaDátumu)&DennýPlán[[#This Row],[Čas]],HľadaťDátumAČas,0),3),\"\")","v":""}]
[{"$nulls":4},{"$f":"'Časové intervaly'!E70","v":""},{"$f":"IFERROR(INDEX(PlánovačUdalostí[],MATCH(DATEVALUE(HodnotaDátumu)&DennýPlán[[#This Row],[Čas]],HľadaťDátumAČas,0),3),\"\")","v":""}]
[{"$nulls":4},{"$f":"'Časové intervaly'!E71","v":""},{"$f":"IFERROR(INDEX(PlánovačUdalostí[],MATCH(DATEVALUE(HodnotaDátumu)&DennýPlán[[#This Row],[Čas]],HľadaťDátumAČas,0),3),\"\")","v":""}]
[{"$nulls":4},{"$f":"'Časové intervaly'!E72","v":""},{"$f":"IFERROR(INDEX(PlánovačUdalostí[],MATCH(DATEVALUE(HodnotaDátumu)&DennýPlán[[#This Row],[Čas]],HľadaťDátumAČas,0),3),\"\")","v":""}]
[{"$nulls":4},{"$f":"'Časové intervaly'!E73","v":""},{"$f":"IFERROR(INDEX(PlánovačUdalostí[],MATCH(DATEVALUE(HodnotaDátumu)&DennýPlán[[#This Row],[Čas]],HľadaťDátumAČas,0),3),\"\")","v":""}]
[{"$nulls":4},{"$f":"'Časové intervaly'!E74","v":""},{"$f":"IFERROR(INDEX(PlánovačUdalostí[],MATCH(DATEVALUE(HodnotaDátumu)&DennýPlán[[#This Row],[Čas]],HľadaťDátumAČas,0),3),\"\")","v":""}]
[{"$nulls":4},{"$f":"'Časové intervaly'!E75","v":""},{"$f":"IFERROR(INDEX(PlánovačUdalostí[],MATCH(DATEVALUE(HodnotaDátumu)&DennýPlán[[#This Row],[Čas]],HľadaťDátumAČas,0),3),\"\")","v":""}]

{"sheet":"Plánovač udalostí","index":1,"n_rows":15,"n_cols":8,"rows_kept":15,"merged":[[0,1,0,2],[1,1,4,2],[5,1,6,2],[7,1,7,2]]}
[null,"Plánovač udalostí"]
[null,{"$f":"DAY(HodnotaDátumu)","v":24},null,null,"DÁTUM","ČAS","POPIS","JEDINEČNÁ HODNOTA (VYPOČÍTANÁ)"]
[{"$nulls":4},{"$f":"TODAY()","v":"2022-06-24"},"06:00:00","Budíček",{"$f":"PlánovačUdalostí[[#This Row],[DÁTUM]]&\"|\"&COUNTIF($E$3:E3,E3)","v":"44736|1"}]
[{"$nulls":4},{"$f":"TODAY()","v":"2022-06-24"},"06:30:00","Sprcha",{"$f":"PlánovačUdalostí[[#This Row],[DÁTUM]]&\"|\"&COUNTIF($E$3:E4,E4)","v":"44736|2"}]
[{"$nulls":4},"2022-06-24","07:30:00","Odchod do práce",{"$f":"PlánovačUdalostí[[#This Row],[DÁTUM]]&\"|\"&COUNTIF($E$3:E5,E5)","v":"44736|3"}]
[null,{"$f":"TEXT(HodnotaDátumu,\"dddd\")","v":"piatok"},null,null,"2022-06-24","08:00:00","Začiatok zmeny",{"$f":"PlánovačUdalostí[[#This Row],[DÁTUM]]&\"|\"&COUNTIF($E$3:E6,E6)","v":"44736|4"}]
[{"$nulls":4},"2022-06-24","10:00:00","Prestávka",{"$f":"PlánovačUdalostí[[#This Row],[DÁTUM]]&\"|\"&COUNTIF($E$3:E7,E7)","v":"44736|5"}]
[null,{"$f":"HodnotaDátumu","v":"24 JÚN 2022"},null,null,"2022-06-24","12:00:00","Obed",{"$f":"PlánovačUdalostí[[#This Row],[DÁTUM]]&\"|\"&COUNTIF($E$3:E8,E8)","v":"44736|6"}]
[{"$nulls":4},"2022-06-24","13:00:00","Návrat do práce",{"$f":"PlánovačUdalostí[[#This Row],[DÁTUM]]&\"|\"&COUNTIF($E$3:E9,E9)","v":"44736|7"}]
[null,"Výberom upravíte časové intervaly",null,null,"2022-06-24","13:30:00","Pracovný telefonát",{"$f":"PlánovačUdalostí[[#This Row],[DÁTUM]]&\"|\"&COUNTIF($E$3:E10,E10)","v":"44736|8"}]
[{"$nulls":4},"2022-06-24","15:00:00","Prestávka",{"$f":"PlánovačUdalostí[[#This Row],[DÁTUM]]&\"|\"&COUNTIF($E$3:E11,E11)","v":"44736|9"}]
[null,"Výberom zobrazíte denný plán",null,null,"2022-06-24","17:00:00","Domov",{"$f":"PlánovačUdalostí[[#This Row],[DÁTUM]]&\"|\"&COUNTIF($E$3:E12,E12)","v":"44736|10"}]
[{"$nulls":4},"2022-06-24","18:00:00","Futbalový tréning",{"$f":"PlánovačUdalostí[[#This Row],[DÁTUM]]&\"|\"&COUNTIF($E$3:E13,E13)","v":"44736|11"}]
[{"$nulls":4},{"$f":"TODAY()+1","v":"2022-06-25"},"06:30:00","Raňajky",{"$f":"PlánovačUdalostí[[#This Row],[DÁTUM]]&\"|\"&COUNTIF($E$3:E15,E14)","v":"44737|2"}]
[{"$nulls":4},{"$f":"TODAY()+1","v":"2022-06-25"},"07:30:00","Odchod do práce",{"$f":"PlánovačUdalostí[[#This Row],[DÁTUM]]&\"|\"&COUNTIF($E$3:E15,E15)","v":"44737|2"}]

{"sheet":"Časové intervaly","index":2,"n_rows":75,"n_cols":5,"rows_kept":75,"merged":[[0,1,0,2],[1,1,1,2],[9,1,9,2]]}
[null,"Časové intervaly"]
[null,"ÚPRAVA TABUĽKY ČASOV",null,null,"Čas"]
[{"$nulls":4},{"$f":"Čas_začatia","v":"06:00:00"}]
[null,"Čas začatia","06:00:00",null,{"$f":"IFERROR(IF($E3+Prírastok>ČasUkončenia,\"\",$E3+Prírastok),\"\")","v":"06:15:00"}]
[{"$nulls":4},"06:30:00"]
[null,"Interval","15 min",null,"06:45:00"]
[{"$nulls":4},"07:00:00"]
[null,"Čas ukončenia","21:00:00",null,"07:15:00"]
[{"$nulls":4},"07:30:00"]
[null,"ZOBRAZENIE PLÁNU",null,null,"07:45:00"]
[{"$nulls":4},"08:00:00"]
[null,"Výberom zobrazíte denný plán",null,null,"08:15:00"]
[{"$nulls":4},"08:30:00"]
[null,"Výberom pridáte novú udalosť",null,null,"08:45:00"]
[{"$nulls":4},"09:00:00"]
[{"$nulls":4},"09:15:00"]
[{"$nulls":4},"09:30:00"]
[{"$nulls":4},"09:45:00"]
[{"$nulls":4},"10:00:00"]
[{"$nulls":4},"10:15:00"]
[{"$nulls":4},"10:30:00"]
[{"$nulls":4},"10:45:00"]
[{"$nulls":4},"11:00:00"]
[{"$nulls":4},"11:15:00"]
[{"$nulls":4},"11:30:00"]
[{"$nulls":4},"11:45:00"]
[{"$nulls":4},"12:00:00"]
[{"$nulls":4},"12:15:00"]
[{"$nulls":4},"12:30:00"]
[{"$nulls":4},"12:45:00"]
[{"$nulls":4},"13:00:00"]
[{"$nulls":4},"13:15:00"]
[{"$nulls":4},"13:30:00"]
[{"$nulls":4},"13:45:00"]
[{"$nulls":4},"14:00:00"]
[{"$nulls":4},{"$f":"IFERROR(IF($E35+Prírastok>ČasUkončenia,\"\",$E35+Prírastok),\"\")","v":"14:15:00"}]
[{"$nulls":4},"14:30:00"]
[{"$nulls":4},"14:45:00"]
[{"$nulls":4},"15:00:00"]
[{"$nulls":4},"15:15:00"]
[{"$nulls":4},"15:30:00"]
[{"$nulls":4},"15:45:00"]
[{"$nulls":4},"16:00:00"]
[{"$nulls":4},"16:15:00"]
[{"$nulls":4},"16:30:00"]
[{"$nulls":4},"16:45:00"]
[{"$nulls":4},"17:00:00"]
[{"$nulls":4},"17:15:00"]
[{"$nulls":4},"17:30:00"]
[{"$nulls":4},"17:45:00"]
[{"$nulls":4},"18:00:00"]
[{"$nulls":4},"18:15:00"]
[{"$nulls":4},"18:30:00"]
[{"$nulls":4},"18:45:00"]
[{"$nulls":4},"19:00:00"]
[{"$nulls":4},"19:15:00"]
[{"$nulls":4},"19:30:00"]
[{"$nulls":4},"19:45:00"]
[{"$nulls":4},"20:00:00"]
[{"$nulls":4},"20:15:00"]
[{"$nulls":4},"20:30:00"]
[{"$nulls":4},"20:45:00"]
[{"$nulls":4},"21:00:00"]
[{"$nulls":4},""]
[{"$nulls":4},""]
[{"$nulls":4},""]
[{"$nulls":4},""]
[{"$nulls":4},{"$f":"IFERROR(IF($E67+Prírastok>ČasUkončenia,\"\",$E67+Prírastok),\"\")","v":""}]
[{"$nulls":4},""]
[{"$nulls":4},""]
[{"$nulls":4},""]
[{"$nulls":4},""]
[{"$nulls":4},""]
[{"$nulls":4},""]
[{"$nulls":4},""]